[Event "*** Titled Tuesday Blitz"]
[Site "Chess.com"]
[Date "2020.12.01"]
[Round "5"]
[White "AvitalBor"]
[Black "BigAl"]
[Result "1-0"]
[WhiteElo "2686"]
[BlackElo "2468"]
[TimeControl "180+1"]
[EndTime "10:54:15 PST"]
[Termination "AvitalBor won by resignation"]

1. e4 {[%clk 0:03:00.9]} 1... c6 {[%clk 0:03:00.2]} 2. d4 {[%clk 0:03:00]} 2...
d5 {[%clk 0:03:00.6]} 3. e5 {[%clk 0:03:00.4]} 3... Bf5 {[%clk 0:03:01.1]} 4.
Nf3 {[%clk 0:02:59.5]} 4... e6 {[%clk 0:03:01]} 5. Be2 {[%clk 0:02:59.8]} 5...
Ne7 {[%clk 0:03:01]} 6. c4 {[%clk 0:02:58.8]} 6... dxc4 {[%clk 0:02:56.5]} 7.
Nbd2 {[%clk 0:02:48.2]} 7... Ng6 {[%clk 0:02:48.4]} 8. Nxc4 {[%clk 0:02:46.3]}
8... Be7 {[%clk 0:02:48.1]} 9. O-O {[%clk 0:02:40]} 9... O-O {[%clk 0:02:46.5]}
10. Be3 {[%clk 0:02:34.3]} 10... Nd7 {[%clk 0:02:33.7]} 11. Nfd2 {[%clk
0:02:31.5]} 11... b5 {[%clk 0:01:55.7]} 12. Nd6 {[%clk 0:02:30]} 12... Bxd6
{[%clk 0:01:55.3]} 13. exd6 {[%clk 0:02:30.9]} 13... e5 {[%clk 0:01:52.6]} 14.
Rc1 {[%clk 0:02:20.9]} 14... exd4 {[%clk 0:01:41]} 15. Bxd4 {[%clk 0:02:20.5]}
15... c5 {[%clk 0:01:41.4]} 16. Bxc5 {[%clk 0:02:19]} 16... Nxc5 {[%clk
0:01:41.4]} 17. Rxc5 {[%clk 0:02:18.9]} 17... Be6 {[%clk 0:01:33.6]} 18. Nb3
{[%clk 0:02:16.9]} 18... a6 {[%clk 0:01:31.8]} 19. Bf3 {[%clk 0:02:14.9]} 19...
Ra7 {[%clk 0:01:25.2]} 20. Qd4 {[%clk 0:02:10.6]} 20... Rd7 {[%clk 0:01:23.4]}
21. Rc6 {[%clk 0:02:09.2]} 21... Bxb3 {[%clk 0:01:14.4]} 22. axb3 {[%clk
0:02:10.1]} 22... Qg5 {[%clk 0:01:14.5]} 23. Rxa6 {[%clk 0:02:02]} 23... Rfd8
{[%clk 0:00:57.7]} 24. Rd1 {[%clk 0:01:48.9]} 24... h6 {[%clk 0:00:54.3]} 25.
Qd5 {[%clk 0:01:35.7]} 25... Qf6 {[%clk 0:00:50.7]} 26. Ra8 {[%clk 0:01:28.6]}
26... Ne5 {[%clk 0:00:43.8]} 27. Be4 {[%clk 0:01:21.3]} 27... Ng4 {[%clk
0:00:43]} 28. Qf5 {[%clk 0:01:00]} 28... Qxf5 {[%clk 0:00:22.8]} 29. Bxf5 {[%clk
0:00:58.5]} 29... Rxa8 {[%clk 0:00:20]} 30. Bxd7 {[%clk 0:00:58.2]} 30... Nf6
{[%clk 0:00:19.8]} 31. Bxb5 {[%clk 0:00:58.2]} 31... Rd8 {[%clk 0:00:19.7]} 32.
f3 {[%clk 0:00:52.2]} 32... Kf8 {[%clk 0:00:20]} 33. Kf2 {[%clk 0:00:52]} 33...
Rb8 {[%clk 0:00:20.3]} 34. d7 {[%clk 0:00:45.7]} 34... Rd8 {[%clk 0:00:19.8]}
35. Re1 {[%clk 0:00:42.6]} 35... Nxd7 {[%clk 0:00:18.4]} 36. Rd1 {[%clk
0:00:42.7]} 36... Rb8 {[%clk 0:00:18.6]} 37. Bxd7 {[%clk 0:00:42.1]} 37... Rxb3
{[%clk 0:00:19.3]} 38. Rd2 {[%clk 0:00:42.3]} 38... Rb7 {[%clk 0:00:18.9]} 39.
Bc6 {[%clk 0:00:39]} 39... Rb6 {[%clk 0:00:18.8]} 40. Bd5 {[%clk 0:00:39]} 40...
Ke7 {[%clk 0:00:19.1]} 41. Bc4 {[%clk 0:00:38.7]} 1-0

[Event "*** Titled Tuesday Blitz"]
[Site "Chess.com"]
[Date "2020.12.01"]
[Round "5"]
[White "TheCavemanChesss"]
[Black "superchess02"]
[Result "0-1"]
[WhiteElo "2479"]
[BlackElo "2770"]
[TimeControl "180+1"]
[EndTime "10:54:15 PST"]
[Termination "superchess02 won by resignation"]

1. e4 {[%clk 0:03:00.9]} 1... e5 {[%clk 0:02:59.5]} 2. Nf3 {[%clk 0:03:00.8]}
2... Nc6 {[%clk 0:02:59.4]} 3. Bb5 {[%clk 0:03:01.5]} 3... a6 {[%clk 0:02:59.4]}
4. Ba4 {[%clk 0:03:01.5]} 4... Nf6 {[%clk 0:02:59.3]} 5. O-O {[%clk 0:03:01.6]}
5... Be7 {[%clk 0:02:58.9]} 6. Re1 {[%clk 0:02:57.2]} 6... b5 {[%clk 0:02:59]}
7. Bb3 {[%clk 0:02:58]} 7... d6 {[%clk 0:02:59]} 8. c3 {[%clk 0:02:56.9]} 8...
O-O {[%clk 0:02:58.9]} 9. d4 {[%clk 0:02:55.9]} 9... Bg4 {[%clk 0:02:57.7]} 10.
Be3 {[%clk 0:02:56.5]} 10... exd4 {[%clk 0:02:54.6]} 11. cxd4 {[%clk 0:02:55.1]}
11... Na5 {[%clk 0:02:54.7]} 12. Bc2 {[%clk 0:02:55]} 12... c5 {[%clk
0:02:53.1]} 13. d5 {[%clk 0:02:48.7]} 13... Nc4 {[%clk 0:02:52.3]} 14. Bc1
{[%clk 0:02:48.1]} 14... Nd7 {[%clk 0:02:52.8]} 15. h3 {[%clk 0:02:47.3]} 15...
Bh5 {[%clk 0:02:49]} 16. Nc3 {[%clk 0:02:36.8]} 16... Bf6 {[%clk 0:02:42.9]} 17.
g4 {[%clk 0:02:33.4]} 17... Bg6 {[%clk 0:02:42.7]} 18. Rb1 {[%clk 0:02:33.1]}
18... Re8 {[%clk 0:02:41.3]} 19. Re2 {[%clk 0:01:58.8]} 19... Ndb6 {[%clk
0:02:27.4]} 20. Qe1 {[%clk 0:01:14.9]} 20... Bxc3 {[%clk 0:02:26.3]} 21. bxc3
{[%clk 0:00:51.2]} 21... Nxd5 {[%clk 0:02:25.8]} 22. Bg5 {[%clk 0:00:21.5]}
22... Qd7 {[%clk 0:02:24.1]} 23. Nh4 {[%clk 0:00:18.3]} 23... Ndb6 {[%clk
0:02:20.2]} 24. Nxg6 {[%clk 0:00:18.3]} 24... hxg6 {[%clk 0:02:19.8]} 25. Rd1
{[%clk 0:00:18.9]} 25... Qc6 {[%clk 0:02:14.8]} 26. Bf4 {[%clk 0:00:17.3]} 26...
d5 {[%clk 0:01:50]} 27. e5 {[%clk 0:00:16.8]} 27... Re6 {[%clk 0:01:40.5]} 28.
Bg3 {[%clk 0:00:14.5]} 28... g5 {[%clk 0:01:40.2]} 29. Bf5 {[%clk 0:00:13.6]}
29... Re7 {[%clk 0:01:39.9]} 30. h4 {[%clk 0:00:13.7]} 30... g6 {[%clk 0:01:30]}
31. Bd3 {[%clk 0:00:13.5]} 31... Qe6 {[%clk 0:01:28.1]} 32. hxg5 {[%clk
0:00:11]} 32... Qxg4 {[%clk 0:01:27.5]} 33. Kg2 {[%clk 0:00:09.4]} 33... Rae8
{[%clk 0:01:24.2]} 34. Bxc4 {[%clk 0:00:09.1]} 34... bxc4 {[%clk 0:01:15.1]} 35.
f3 {[%clk 0:00:08.1]} 35... Qxg5 {[%clk 0:01:14.6]} 36. f4 {[%clk 0:00:07.4]}
36... Qg4 {[%clk 0:01:14.1]} 37. Rb2 {[%clk 0:00:07.7]} 37... Na4 {[%clk
0:01:11.4]} 38. Rc2 {[%clk 0:00:08.3]} 38... Qf5 {[%clk 0:01:09.2]} 39. Rf2
{[%clk 0:00:06.8]} 39... Rd7 {[%clk 0:01:06.9]} 40. Re2 {[%clk 0:00:05.5]} 40...
d4 {[%clk 0:01:06.5]} 41. cxd4 {[%clk 0:00:04.8]} 41... cxd4 {[%clk 0:01:07.4]}
42. Qh1 {[%clk 0:00:03.3]} 42... Nc3 {[%clk 0:01:06.4]} 0-1

[Event "*** Titled Tuesday Blitz"]
[Site "Chess.com"]
[Date "2020.12.01"]
[Round "5"]
[White "r31415"]
[Black "Shubinkirill2003"]
[Result "0-1"]
[WhiteElo "2475"]
[BlackElo "2709"]
[TimeControl "180+1"]
[EndTime "10:54:17 PST"]
[Termination "Shubinkirill2003 won on time"]

1. e4 {[%clk 0:03:00.9]} 1... e6 {[%clk 0:03:00]} 2. d4 {[%clk 0:02:59.3]} 2...
d5 {[%clk 0:03:00]} 3. Nc3 {[%clk 0:02:58.8]} 3... Bb4 {[%clk 0:02:59.5]} 4.
exd5 {[%clk 0:02:58.2]} 4... exd5 {[%clk 0:02:58.8]} 5. Bd3 {[%clk 0:02:58.7]}
5... c6 {[%clk 0:02:57.9]} 6. Qf3 {[%clk 0:02:47.2]} 6... Qf6 {[%clk 0:02:55.9]}
7. Be3 {[%clk 0:02:38.5]} 7... Qxf3 {[%clk 0:02:54.4]} 8. Nxf3 {[%clk 0:02:38]}
8... Ne7 {[%clk 0:02:54.8]} 9. O-O {[%clk 0:02:31.2]} 9... Bf5 {[%clk 0:02:54]}
10. Ne5 {[%clk 0:02:22.9]} 10... f6 {[%clk 0:02:51.3]} 11. Bxf5 {[%clk
0:02:19.7]} 11... Nxf5 {[%clk 0:02:52.2]} 12. Nd3 {[%clk 0:02:18.5]} 12... Bd6
{[%clk 0:02:50.9]} 13. Rfe1 {[%clk 0:02:10]} 13... Kf7 {[%clk 0:02:49]} 14. Ne2
{[%clk 0:01:52.8]} 14... h5 {[%clk 0:02:45.1]} 15. Bf4 {[%clk 0:01:50.6]} 15...
Bxf4 {[%clk 0:02:44]} 16. Ndxf4 {[%clk 0:01:50.4]} 16... h4 {[%clk 0:02:43.6]}
17. c3 {[%clk 0:01:47.6]} 17... g5 {[%clk 0:02:42.7]} 18. Nd3 {[%clk 0:01:47]}
18... Nd7 {[%clk 0:02:42.7]} 19. Nec1 {[%clk 0:01:46.7]} 19... Rae8 {[%clk
0:02:40.8]} 20. Nb3 {[%clk 0:01:46.8]} 20... b6 {[%clk 0:02:40.7]} 21. h3 {[%clk
0:01:41]} 21... Nd6 {[%clk 0:02:38.9]} 22. Nd2 {[%clk 0:01:39.3]} 22... f5
{[%clk 0:02:33.3]} 23. f3 {[%clk 0:01:17.7]} 23... f4 {[%clk 0:02:28.1]} 24.
Rxe8 {[%clk 0:01:09.1]} 24... Rxe8 {[%clk 0:02:27.5]} 25. Re1 {[%clk 0:01:09.6]}
25... Rxe1+ {[%clk 0:02:22.5]} 26. Nxe1 {[%clk 0:01:10.5]} 26... c5 {[%clk
0:02:20.7]} 27. Nb3 {[%clk 0:01:06.6]} 27... Kf6 {[%clk 0:02:12.7]} 28. Kf2
{[%clk 0:01:05.8]} 28... a5 {[%clk 0:02:05.6]} 29. a4 {[%clk 0:01:02.9]} 29...
c4 {[%clk 0:02:03.2]} 30. Nd2 {[%clk 0:00:57.2]} 30... b5 {[%clk 0:01:57.8]} 31.
axb5 {[%clk 0:00:53.1]} 31... Nxb5 {[%clk 0:01:56.8]} 32. Nc2 {[%clk 0:00:53.6]}
32... Nb6 {[%clk 0:01:56.3]} 33. Na1 {[%clk 0:00:25.8]} 33... Ke6 {[%clk
0:01:39.4]} 34. Ke1 {[%clk 0:00:23.5]} 34... Na4 {[%clk 0:01:33.7]} 35. b3
{[%clk 0:00:23.1]} 35... cxb3 {[%clk 0:01:33.3]} 36. Naxb3 {[%clk 0:00:22.9]}
36... Naxc3 {[%clk 0:01:29.7]} 37. Nxa5 {[%clk 0:00:15.1]} 37... Nxd4 {[%clk
0:01:29.7]} 38. Nb7 {[%clk 0:00:13.2]} 38... Nc2+ {[%clk 0:01:22.9]} 39. Kf2
{[%clk 0:00:13.3]} 39... Ne3 {[%clk 0:01:21.5]} 40. Nc5+ {[%clk 0:00:12.5]}
40... Ke5 {[%clk 0:01:21]} 41. Nd3+ {[%clk 0:00:13.2]} 41... Kd4 {[%clk
0:01:20.2]} 42. Nb4 {[%clk 0:00:12.4]} 42... Ncd1+ {[%clk 0:01:18.8]} 43. Ke2
{[%clk 0:00:11]} 43... Nb2 {[%clk 0:01:15.5]} 44. Nc6+ {[%clk 0:00:09.1]} 44...
Kc3 {[%clk 0:01:11.3]} 45. Ne7 {[%clk 0:00:06.2]} 45... d4 {[%clk 0:01:10.1]}
46. Ne4+ {[%clk 0:00:05.7]} 46... Kc2 {[%clk 0:01:09.7]} 47. Nxg5 {[%clk
0:00:02.7]} 47... d3+ {[%clk 0:01:09.6]} 0-1

[Event "*** Titled Tuesday Blitz"]
[Site "Chess.com"]
[Date "2020.12.01"]
[Round "5"]
[White "nubair1198"]
[Black "asms9699"]
[Result "1-0"]
[WhiteElo "2816"]
[BlackElo "2594"]
[TimeControl "180+1"]
[EndTime "10:54:18 PST"]
[Termination "nubair1198 won on time"]

1. Nf3 {[%clk 0:03:00.6]} 1... d5 {[%clk 0:02:58.7]} 2. b3 {[%clk 0:02:59.2]}
2... Nf6 {[%clk 0:02:58.6]} 3. Bb2 {[%clk 0:02:58.5]} 3... g6 {[%clk 0:02:59.3]}
4. c4 {[%clk 0:02:58.8]} 4... c6 {[%clk 0:02:58.8]} 5. g3 {[%clk 0:02:55.1]}
5... Bg7 {[%clk 0:02:58.5]} 6. Bg2 {[%clk 0:02:55.7]} 6... O-O {[%clk
0:02:58.9]} 7. O-O {[%clk 0:02:56.2]} 7... Bg4 {[%clk 0:02:59.5]} 8. Ne5 {[%clk
0:02:55.9]} 8... Bf5 {[%clk 0:02:58.3]} 9. d4 {[%clk 0:02:55.5]} 9... Nbd7
{[%clk 0:02:57.7]} 10. Nd2 {[%clk 0:02:56.1]} 10... Rc8 {[%clk 0:02:52.8]} 11.
Rc1 {[%clk 0:02:55.6]} 11... Ne4 {[%clk 0:02:49.4]} 12. Nxe4 {[%clk 0:02:53.2]}
12... Bxe4 {[%clk 0:02:50.3]} 13. f3 {[%clk 0:02:50.2]} 13... Bf5 {[%clk
0:02:49.4]} 14. e4 {[%clk 0:02:49.1]} 14... Be6 {[%clk 0:02:36.4]} 15. Nd3
{[%clk 0:02:05.7]} 15... Qb6 {[%clk 0:01:27]} 16. Nf4 {[%clk 0:02:00.1]} 16...
dxe4 {[%clk 0:00:50.8]} 17. c5 {[%clk 0:01:56.2]} 17... Qa5 {[%clk 0:00:33.2]}
18. Nxe6 {[%clk 0:01:57.1]} 18... fxe6 {[%clk 0:00:33.2]} 19. Bc3 {[%clk
0:01:51.2]} 19... Qc7 {[%clk 0:00:26.1]} 20. fxe4 {[%clk 0:01:37.3]} 20... e5
{[%clk 0:00:25.9]} 21. Rxf8+ {[%clk 0:01:34.8]} 21... Rxf8 {[%clk 0:00:26.8]}
22. b4 {[%clk 0:01:27.9]} 22... exd4 {[%clk 0:00:23.5]} 23. Bxd4 {[%clk
0:01:28.8]} 23... Bxd4+ {[%clk 0:00:21.4]} 24. Qxd4 {[%clk 0:01:29.7]} 24... Ne5
{[%clk 0:00:19.8]} 25. a4 {[%clk 0:01:25.7]} 25... Rd8 {[%clk 0:00:18.9]} 26.
Qa1 {[%clk 0:01:21.5]} 26... Nd3 {[%clk 0:00:17.2]} 27. Rd1 {[%clk 0:01:02.1]}
27... Nxb4 {[%clk 0:00:16.7]} 28. Bh3 {[%clk 0:01:02.6]} 28... Rxd1+ {[%clk
0:00:13.6]} 29. Qxd1 {[%clk 0:01:03]} 29... Qe5 {[%clk 0:00:13.9]} 30. Qb3+
{[%clk 0:00:58]} 30... Nd5 {[%clk 0:00:07]} 31. exd5 {[%clk 0:00:58.9]} 31...
cxd5 {[%clk 0:00:06.8]} 32. Kf2 {[%clk 0:00:47.4]} 32... Kg7 {[%clk 0:00:05]}
33. Qe3 {[%clk 0:00:46.2]} 33... Qb2+ {[%clk 0:00:04.1]} 34. Kg1 {[%clk
0:00:44.3]} 34... e5 {[%clk 0:00:03.9]} 35. Bf1 {[%clk 0:00:41.5]} 35... e4
{[%clk 0:00:03.7]} 36. c6 {[%clk 0:00:40]} 1-0

[Event "*** Titled Tuesday Blitz"]
[Site "Chess.com"]
[Date "2020.12.01"]
[Round "5"]
[White "chessmadara"]
[Black "Joel1285"]
[Result "1-0"]
[WhiteElo "2188"]
[BlackElo "1824"]
[TimeControl "180+1"]
[EndTime "10:54:21 PST"]
[Termination "chessmadara won on time"]

1. e4 {[%clk 0:03:00.9]} 1... c5 {[%clk 0:01:56.2]} 2. Nf3 {[%clk 0:02:58.6]}
2... Nc6 {[%clk 0:01:56.2]} 3. d4 {[%clk 0:02:57.8]} 3... cxd4 {[%clk
0:01:57.1]} 4. Nxd4 {[%clk 0:02:58]} 4... Nf6 {[%clk 0:01:57.8]} 5. Nc3 {[%clk
0:02:56.4]} 5... e5 {[%clk 0:01:58.3]} 6. Ndb5 {[%clk 0:02:53.2]} 6... d6 {[%clk
0:01:58.8]} 7. Nd5 {[%clk 0:02:50.5]} 7... Nxd5 {[%clk 0:01:58]} 8. exd5 {[%clk
0:02:51.4]} 8... Nb8 {[%clk 0:01:58.4]} 9. a4 {[%clk 0:02:48.6]} 9... Be7 {[%clk
0:01:58.6]} 10. Be2 {[%clk 0:02:47.5]} 10... O-O {[%clk 0:01:58.8]} 11. O-O
{[%clk 0:02:48.1]} 11... a6 {[%clk 0:01:57.8]} 12. Na3 {[%clk 0:02:47.4]} 12...
Bg5 {[%clk 0:01:58.7]} 13. c4 {[%clk 0:02:46.1]} 13... a5 {[%clk 0:01:47.1]} 14.
Nb5 {[%clk 0:02:42.5]} 14... Bxc1 {[%clk 0:01:32.4]} 15. Rxc1 {[%clk 0:02:41.8]}
15... Na6 {[%clk 0:01:32.6]} 16. Qd2 {[%clk 0:02:25.5]} 16... b6 {[%clk
0:01:30.4]} 17. Rfd1 {[%clk 0:02:22.9]} 17... Qe7 {[%clk 0:01:29.7]} 18. Qe3
{[%clk 0:02:19.2]} 18... Nc5 {[%clk 0:01:21.4]} 19. b3 {[%clk 0:02:03.5]} 19...
Bd7 {[%clk 0:01:20.1]} 20. Qg3 {[%clk 0:01:38.9]} 20... Bxb5 {[%clk 0:01:15.2]}
21. cxb5 {[%clk 0:01:37.3]} 21... f5 {[%clk 0:00:56.1]} 22. Bc4 {[%clk
0:01:28.4]} 22... Rf6 {[%clk 0:00:33.5]} 23. Re1 {[%clk 0:01:21.3]} 23... Raf8
{[%clk 0:00:23.4]} 24. Rcd1 {[%clk 0:01:13.4]} 24... Rg6 {[%clk 0:00:19.8]} 25.
Qc3 {[%clk 0:01:08.5]} 25... Qg5 {[%clk 0:00:17]} 26. g3 {[%clk 0:01:06.5]}
26... Rff6 {[%clk 0:00:13]} 27. Rxe5 {[%clk 0:00:31.9]} 27... dxe5 {[%clk
0:00:10.4]} 28. Qxe5 {[%clk 0:00:32.4]} 28... h5 {[%clk 0:00:07.6]} 29. d6+
{[%clk 0:00:29.2]} 29... Kh7 {[%clk 0:00:07.7]} 30. d7 {[%clk 0:00:20.2]} 1-0

[Event "*** Titled Tuesday Blitz"]
[Site "Chess.com"]
[Date "2020.12.01"]
[Round "5"]
[White "ChessteacherPalmS"]
[Black "Twannibal"]
[Result "0-1"]
[WhiteElo "2317"]
[BlackElo "2500"]
[TimeControl "180+1"]
[EndTime "10:54:24 PST"]
[Termination "Twannibal won by resignation"]

1. d4 {[%clk 0:03:00.9]} 1... Nf6 {[%clk 0:02:59.9]} 2. c4 {[%clk 0:03:00.9]}
2... e6 {[%clk 0:03:00.2]} 3. Nf3 {[%clk 0:03:00.3]} 3... d5 {[%clk 0:03:00.5]}
4. Nc3 {[%clk 0:02:59.7]} 4... Be7 {[%clk 0:03:00.5]} 5. Bg5 {[%clk 0:02:57.7]}
5... h6 {[%clk 0:02:59.5]} 6. Bxf6 {[%clk 0:02:52.3]} 6... Bxf6 {[%clk
0:03:00.4]} 7. e3 {[%clk 0:02:52]} 7... O-O {[%clk 0:02:59.2]} 8. Rc1 {[%clk
0:02:50.6]} 8... dxc4 {[%clk 0:02:43.1]} 9. Bxc4 {[%clk 0:02:49.5]} 9... c5
{[%clk 0:02:43.3]} 10. dxc5 {[%clk 0:02:49.7]} 10... Qa5 {[%clk 0:02:41.6]} 11.
O-O {[%clk 0:02:43.1]} 11... Qxc5 {[%clk 0:02:41.3]} 12. Ne4 {[%clk 0:02:42.3]}
12... Qe7 {[%clk 0:02:41.2]} 13. Nxf6+ {[%clk 0:02:35.5]} 13... Qxf6 {[%clk
0:02:42.1]} 14. Qd4 {[%clk 0:02:35]} 14... Nc6 {[%clk 0:02:38.5]} 15. Qxf6
{[%clk 0:02:34.2]} 15... gxf6 {[%clk 0:02:39.4]} 16. Rfd1 {[%clk 0:02:33]} 16...
Rd8 {[%clk 0:02:31.1]} 17. Rxd8+ {[%clk 0:02:23.2]} 17... Nxd8 {[%clk
0:02:30.9]} 18. Rd1 {[%clk 0:02:22.9]} 18... Nc6 {[%clk 0:02:30.9]} 19. Bb5
{[%clk 0:02:23]} 19... Kf8 {[%clk 0:02:22.3]} 20. Bxc6 {[%clk 0:02:20.2]} 20...
bxc6 {[%clk 0:02:21.9]} 21. Rd8+ {[%clk 0:02:20.7]} 21... Ke7 {[%clk 0:02:21.9]}
22. Rh8 {[%clk 0:02:20.3]} 22... Bb7 {[%clk 0:02:22.1]} 23. Rxh6 {[%clk
0:02:16.9]} 23... Rd8 {[%clk 0:02:20.2]} 24. h4 {[%clk 0:01:55.4]} 24... Rd1+
{[%clk 0:02:19.2]} 25. Kh2 {[%clk 0:01:53.9]} 25... Rb1 {[%clk 0:02:18.6]} 26.
Rh5 {[%clk 0:01:51.4]} 26... Rxb2 {[%clk 0:02:11.5]} 27. Ra5 {[%clk 0:01:47.8]}
27... Rxf2 {[%clk 0:02:01.6]} 28. Rxa7 {[%clk 0:01:47.2]} 28... Rb2 {[%clk
0:02:01.5]} 29. h5 {[%clk 0:01:34.5]} 29... Kf8 {[%clk 0:01:57.8]} 30. a4 {[%clk
0:01:24.5]} 30... c5 {[%clk 0:01:54.4]} 31. Kg3 {[%clk 0:01:23.8]} 31... Kg7
{[%clk 0:01:47.8]} 32. a5 {[%clk 0:01:23.7]} 32... Bd5 {[%clk 0:01:42.3]} 33.
Rc7 {[%clk 0:01:16.8]} 33... c4 {[%clk 0:01:42.6]} 34. a6 {[%clk 0:01:11.7]}
34... Ra2 {[%clk 0:01:38.2]} 35. a7 {[%clk 0:01:09.9]} 35... c3 {[%clk
0:01:38.5]} 36. Rxc3 {[%clk 0:00:53]} 36... Rxa7 {[%clk 0:01:37.5]} 37. Rc5
{[%clk 0:00:32.6]} 37... Kh6 {[%clk 0:01:28.4]} 38. Kh4 {[%clk 0:00:26.6]} 38...
Ra4+ {[%clk 0:01:23.8]} 39. Kh3 {[%clk 0:00:23]} 39... Kxh5 {[%clk 0:01:20.7]}
40. Nd4 {[%clk 0:00:20.6]} 40... Kg6 {[%clk 0:01:12.7]} 41. Nb5 {[%clk
0:00:16.7]} 41... Ra2 {[%clk 0:01:05.2]} 42. g3 {[%clk 0:00:16.7]} 42... Bg2+
{[%clk 0:01:01.2]} 43. Kg4 {[%clk 0:00:15.4]} 43... Ra4+ {[%clk 0:01:00.5]} 44.
Nd4 {[%clk 0:00:10.1]} 44... e5 {[%clk 0:00:58.4]} 45. Rc2 {[%clk 0:00:09.3]}
45... Be4 {[%clk 0:00:48.4]} 46. Rc4 {[%clk 0:00:07.8]} 46... Rxc4 {[%clk
0:00:46.5]} 0-1

[Event "*** Titled Tuesday Blitz"]
[Site "Chess.com"]
[Date "2020.12.01"]
[Round "5"]
[White "TheCairnTerrier"]
[Black "KetiTsatsalashvili"]
[Result "0-1"]
[WhiteElo "2154"]
[BlackElo "2334"]
[TimeControl "180+1"]
[EndTime "10:54:26 PST"]
[Termination "KetiTsatsalashvili won on time"]

1. e4 {[%clk 0:03:00.9]} 1... c5 {[%clk 0:02:58.2]} 2. Nf3 {[%clk 0:02:59.9]}
2... d6 {[%clk 0:02:58.6]} 3. Bb5+ {[%clk 0:02:59.7]} 3... Nd7 {[%clk 0:02:58]}
4. O-O {[%clk 0:02:58.9]} 4... Nf6 {[%clk 0:02:57.7]} 5. Re1 {[%clk 0:02:58.5]}
5... e6 {[%clk 0:02:57.9]} 6. c3 {[%clk 0:02:57.5]} 6... Be7 {[%clk 0:02:58]} 7.
d4 {[%clk 0:02:57]} 7... O-O {[%clk 0:02:55.5]} 8. d5 {[%clk 0:02:38]} 8... e5
{[%clk 0:02:51.4]} 9. a4 {[%clk 0:02:17.9]} 9... a6 {[%clk 0:02:48.5]} 10. Bf1
{[%clk 0:02:17]} 10... b6 {[%clk 0:02:49]} 11. g3 {[%clk 0:02:13.9]} 11... h6
{[%clk 0:02:41.7]} 12. Bg2 {[%clk 0:02:13.9]} 12... Bb7 {[%clk 0:02:34.7]} 13.
Nbd2 {[%clk 0:02:13.2]} 13... b5 {[%clk 0:02:34.8]} 14. axb5 {[%clk 0:01:59.2]}
14... axb5 {[%clk 0:02:35.7]} 15. Rxa8 {[%clk 0:01:59.4]} 15... Bxa8 {[%clk
0:02:34.3]} 16. Qb3 {[%clk 0:01:58.7]} 16... Qa5 {[%clk 0:02:29.6]} 17. Nb1
{[%clk 0:01:30.2]} 17... c4 {[%clk 0:02:25.7]} 18. Qc2 {[%clk 0:01:24.4]} 18...
Nc5 {[%clk 0:02:23.4]} 19. Nh4 {[%clk 0:01:02.4]} 19... Rb8 {[%clk 0:02:07.5]}
20. Na3 {[%clk 0:01:00.4]} 20... Qa4 {[%clk 0:01:58]} 21. Nf5 {[%clk 0:00:57.8]}
21... Bf8 {[%clk 0:01:52]} 22. Qe2 {[%clk 0:00:23.7]} 22... Nd3 {[%clk
0:01:43.7]} 23. Rd1 {[%clk 0:00:13.5]} 23... Bb7 {[%clk 0:01:39]} 24. h4 {[%clk
0:00:10.1]} 24... Bc8 {[%clk 0:01:38.9]} 25. g4 {[%clk 0:00:09.6]} 25... Bxf5
{[%clk 0:01:29.7]} 26. gxf5 {[%clk 0:00:08.5]} 26... h5 {[%clk 0:01:07.1]} 27.
Be3 {[%clk 0:00:08]} 27... Qb3 {[%clk 0:01:05.6]} 28. Rd2 {[%clk 0:00:06]} 28...
Ra8 {[%clk 0:01:01.4]} 29. Bg5 {[%clk 0:00:05.1]} 29... Ng4 {[%clk 0:01:00.4]}
30. Bh3 {[%clk 0:00:02.3]} 30... Ngxf2 {[%clk 0:00:57.9]} 31. Qxh5 {[%clk
0:00:01.6]} 31... Nxh3+ {[%clk 0:00:56.9]} 32. Kh2 {[%clk 0:00:01.8]} 32... Nhf4
{[%clk 0:00:54.5]} 33. Bxf4 {[%clk 0:00:01.6]} 33... Nxf4 {[%clk 0:00:55.1]} 34.
Qg4 {[%clk 0:00:02]} 34... b4 {[%clk 0:00:47.7]} 35. h5 {[%clk 0:00:02.3]} 35...
bxc3 {[%clk 0:00:46.3]} 36. Rg2 {[%clk 0:00:02.2]} 36... Qxb2 {[%clk 0:00:40.5]}
37. Rxb2 {[%clk 0:00:01.4]} 37... cxb2 {[%clk 0:00:40.9]} 0-1

[Event "*** Titled Tuesday Blitz"]
[Site "Chess.com"]
[Date "2020.12.01"]
[Round "5"]
[White "wonderfultime"]
[Black "Vanina1989"]
[Result "0-1"]
[WhiteElo "2923"]
[BlackElo "2652"]
[TimeControl "180+1"]
[EndTime "10:54:27 PST"]
[Termination "Vanina1989 won by resignation"]

1. d4 {[%clk 0:03:00.9]} 1... Nf6 {[%clk 0:02:59.1]} 2. Nf3 {[%clk 0:03:00.4]}
2... e6 {[%clk 0:02:59.2]} 3. c4 {[%clk 0:03:00.7]} 3... Bb4+ {[%clk 0:02:57.6]}
4. Nbd2 {[%clk 0:03:00.3]} 4... a5 {[%clk 0:02:57.1]} 5. e3 {[%clk 0:02:58.6]}
5... O-O {[%clk 0:02:56.6]} 6. Bd3 {[%clk 0:02:59.1]} 6... d5 {[%clk 0:02:57]}
7. O-O {[%clk 0:02:59.7]} 7... c5 {[%clk 0:02:55.6]} 8. Qe2 {[%clk 0:02:55.1]}
8... cxd4 {[%clk 0:02:54.1]} 9. exd4 {[%clk 0:02:53.7]} 9... Nc6 {[%clk
0:02:51.3]} 10. a3 {[%clk 0:02:50.9]} 10... Bxd2 {[%clk 0:02:50.7]} 11. Bxd2
{[%clk 0:02:51.8]} 11... dxc4 {[%clk 0:02:50.8]} 12. Bxc4 {[%clk 0:02:52.3]}
12... Nxd4 {[%clk 0:02:50.8]} 13. Nxd4 {[%clk 0:02:52.3]} 13... Qxd4 {[%clk
0:02:51]} 14. Be3 {[%clk 0:02:37.2]} 14... Qe5 {[%clk 0:02:46.2]} 15. Rfd1
{[%clk 0:02:29.1]} 15... Bd7 {[%clk 0:02:45.9]} 16. Rd4 {[%clk 0:02:10.4]} 16...
Bc6 {[%clk 0:02:45]} 17. Rad1 {[%clk 0:02:09.9]} 17... h6 {[%clk 0:02:36.7]} 18.
h3 {[%clk 0:02:07.4]} 18... Nd5 {[%clk 0:02:31.7]} 19. Bxd5 {[%clk 0:02:01.7]}
19... Bxd5 {[%clk 0:02:31.7]} 20. Rg4 {[%clk 0:01:54.6]} 20... f5 {[%clk
0:02:30.3]} 21. f4 {[%clk 0:01:46.2]} 21... Qe4 {[%clk 0:02:21]} 22. Rg3 {[%clk
0:01:41.7]} 22... e5 {[%clk 0:02:15.2]} 23. Qf2 {[%clk 0:00:42.7]} 23... Rac8
{[%clk 0:02:11.3]} 24. Kh2 {[%clk 0:00:37]} 24... Rc2 {[%clk 0:02:09.3]} 25. Rd2
{[%clk 0:00:37.6]} 25... Rfc8 {[%clk 0:02:08.9]} 26. fxe5 {[%clk 0:00:29.9]}
26... Rxd2 {[%clk 0:02:08.4]} 27. Bxd2 {[%clk 0:00:30.8]} 27... Rc2 {[%clk
0:02:07.2]} 28. e6 {[%clk 0:00:27.2]} 28... Qxe6 {[%clk 0:01:28]} 29. Qf4 {[%clk
0:00:25.8]} 29... g5 {[%clk 0:01:25.2]} 30. Bc3 {[%clk 0:00:18.6]} 30... Kf7
{[%clk 0:01:10.7]} 31. Qc7+ {[%clk 0:00:17.5]} 31... Qe7 {[%clk 0:01:08.6]} 32.
Qc8 {[%clk 0:00:17.2]} 32... Be4 {[%clk 0:00:57.3]} 33. Qc4+ {[%clk 0:00:15.7]}
33... Kg6 {[%clk 0:00:53.1]} 34. Qg8+ {[%clk 0:00:15.7]} 34... Kh5 {[%clk
0:00:50.9]} 35. Bg7 {[%clk 0:00:03.2]} 35... Qd6 {[%clk 0:00:34.7]} 36. Qh8
{[%clk 0:00:01.5]} 36... Rxg2+ {[%clk 0:00:33.1]} 0-1